Cogmind - Beta 16.1 @@@ ROGUE MODE // 2026.04.03 @ 02:31:55 Player: Vena Result: Destroyed by D-53 Grenadier with Mini Grenade Launcher Performance ------------- Evolutions (1) 500 Regions Visited (4) 800 Robots Destroyed (46) 230 Value Destroyed (802) 802 Prototype IDs (1) 20 Alien Tech Used (0) 0 Bonus (0) 0 TOTAL SCORE: 2352 Bonus ------- None Cogmind --------- Core Integrity 0/400 Matter 174/300 Energy 100/100 System Corruption 0% Temperature Cool (0) Movement Core (1600) Ox31 Location -9/Mines Parts ------- > --- POWER (1) -------- (None) > --- PROPULSION (2) --- (None) > --- UTILITY (4) ------ Cooling System Medium Storage Unit Huge Storage Unit Transport Network Coupler > --- WEAPON (2) ------- Improved Assault Rifle Mini Grenade Launcher > --- INVENTORY (25) --- Ion Engine Beam Rifle Improved Assault Rifle Improved Assault Rifle Mace Peak State ------------ > --- POWER ------------ Improved Ion Engine > --- PROPULSION ------- Light Treads Light Treads > --- UTILITY ---------- Medium Storage Unit Improved Terrain Scanner Transport Network Coupler Light Armor Plating > --- WEAPON ----------- Improved Assault Rifle Improved Assault Rifle > --- INVENTORY -------- Light Treads Heat Sink Huge Storage Unit Beam Rifle Assault Rifle Improved Assault Rifle Improved Assault Rifle Mini Grenade Launcher Mace [Rating: 17] Favorites ----------- Power Ion Engine Engine Ion Engine Propulsion Light Treads Treads Light Treads Wheel Wheel Hover Unit Improved Hover Unit Utility Light Armor Plating Device Seismic Detector Storage Large Storage Unit Processor Transport Network Coupler Protection Light Armor Plating Weapon Small Laser Energy Gun Small Laser Energy Cannon Particle Cannon Ballistic Gun Improved Assault Rifle Ballistic Cannon Light Cannon Launcher Mini Grenade Launcher Special Weapon Mining Laser Impact Weapon Mace Build | -11 -10 -10 -9 -9 ------- Run | Yrd Mat Min Mat Min Slots Evolved 2 | . . . 2 . Power . | . . . . . Propulsion . | . . . . . Utility 2 | . . . 2 . Weapon . | . . . . . Parts Attached 54 | 7 11 9 26 1 Power 6 | 1 1 1 3 . Engine 6 | 1 1 1 3 . Core . | . . . . . Reactor . | . . . . . Propulsion 12 | 2 3 2 5 . Treads 7 | 2 1 . 4 . Leg . | . . . . . Wheel 4 | . 2 2 . . Hover 1 | . . . 1 . Flight . | . . . . . Utility 16 | 2 3 1 9 1 Device 5 | 1 . . 3 1 Storage 5 | 1 2 . 2 . Processor 1 | . . . 1 . Hackware . | . . . . . Protection 5 | . 1 1 3 . Artifact . | . . . . . Weapon 20 | 2 4 5 9 . Energy Gun 4 | 2 1 . 1 . Energy Cannon 5 | . . 3 2 . Ballistic Gun 7 | . 1 1 5 . Ballistic Cannon 1 | . . 1 . . Launcher 1 | . . . 1 . Special Weapon 1 | . 1 . . . Impact Weapon 1 | . 1 . . . Slashing Weapon . | . . . . . Piercing Weapon . | . . . . . Special Melee Weapon . | . . . . . Unidentified Prototypes 1 | . . . 1 . Parts Lost 28 | . . 13 7 8 Power 4 | . . 2 1 1 Propulsion 8 | . . 4 1 3 Utility 7 | . . 2 2 3 Weapon 9 | . . 5 3 1 Highest Loss Streak 13 | . . 13 7 8 To Critical Strikes . | . . . . . Average Backups 12 | 2 14 19 7 9 Power . | . . . . 1 Propulsion 1 | 1 2 1 . . Utility 6 | . 8 11 2 2 Weapon 3 | . 2 4 3 4 Tool/Special . | . . . . . Unused Backups 19 | . 3 8 4 4 Power 1 | . . . . 1 Propulsion . | . . . . . Utility 11 | . 3 6 2 . Weapon 6 | . . 1 2 3 Tool/Special 1 | . . 1 . . Average Slot Usage (%) 94 | . 99 87 83 98 Engine 12 | . 13 12 9 11 Treads 16 | . 16 . 17 20 Wheel 8 | . 10 24 . . Device 6 | . 6 . 8 . Storage 12 | . 14 13 8 11 Processor 2 | . . . 7 11 Protection 9 | . 7 10 11 20 Energy Gun 14 | . 22 4 2 . Ballistic Gun 9 | . 5 12 14 21 Peak Build Rating 17 | 7 11 11 17 16 Average Rating 9 | 5 8 9 13 15 On Entrance 6 | . 7 10 . 16 Avg Prop Armor Cover (%) . | . . . . . Naked Turns 16 | . . 8 8 . Heaviest Build 96 | 13 92 96 33 33 Greatest Support 40 | 40 40 26 40 40 Greatest Overweight (x) 5 | . 4 5 4 1 Average Overweight (x) 1 | . 1 3 . . Largest Inventory Capacity 25 | 8 25 25 25 25 Average Capacity 14 | 7 16 23 8 10 Most Carried 23 | 5 22 23 10 10 Average Carried 12 | 3 14 19 7 9 Final Capacity 25 | 8 25 5 10 25 Final Carried 22 | 5 22 5 10 5 Class Distribution -------------------- 81% | Mutant 18% | Scavenger-Mutant Dominant Class ---------------- Mutant | -10/Materials Mutant | -10/Mines Scavenger-Mutant | -9/Materials Mutant | -9/Mines Resources | -11 -10 -10 -9 -9 ----------- Run | Yrd Mat Min Mat Min Matter Collected 845 | 267 202 22 343 11 Remotely . | . . . . . Salvage Created 1441 | 103 820 30 488 . Parts 92 | 7 40 4 41 . Haulers Intercepted 3 | . 2 . 1 . Recyclers Shooed 4 | . 3 . . 1 Parts Field Recycled . | . . . . . Retrieved Matter . | . . . . . Parts Self-Destructed . | . . . . . Prevented . | . . . . . Parts Restored . | . . . . . Kills | -11 -10 -10 -9 -9 ------- Run | Yrd Mat Min Mat Min Combat Hostiles Destroyed 28 | . 12 2 14 . Guns 23 | . 12 2 9 . Cannons 2 | . . . 2 . AOE 3 | . . . 3 . Classes Destroyed 10 | 2 6 . 2 . Worker 3 | . 2 . 1 . Builder 1 | . . . 1 . Tunneler 1 | 1 . . . . Hauler 3 | . 2 . 1 . Recycler 4 | 1 2 . 1 . Operator 3 | . 3 . . . Watcher 3 | . 2 . 1 . Swarmer 15 | . 3 2 10 . Grunt 10 | . 9 . 1 . Sentry 3 | . . . 3 . Best Kill Streak 6 | 1 4 2 6 . Combat Bots Only 5 | . 3 2 5 . Max Kills in Single Turn 3 | 1 1 1 3 . Gunslinging 1 | . . . 1 . Exploded 2 | . . . 2 . Melee . | . . . . . Uniques/NPCs Destroyed . | . . . . . Combat | -11 -10 -10 -9 -9 -------- Run | Yrd Mat Min Mat Min Hostile Shots Fired 265 | . 55 44 143 23 Missed 64 | . 9 13 41 1 Hits 201 | . 46 31 102 22 Projectile 201 | . 46 31 102 22 AOE 59 | . . 31 . 28 Critical Strikes 3 | . . 1 2 . Damage Taken 3810 | . 534 1083 1048 1145 Core 657 | . 51 194 266 146 Absorbed by Shields . | . . . . . Core Remaining (%) 51 | 100 . 2 . . Volleys Fired 134 | 4 82 8 34 6 Largest 2 | 2 2 2 2 2 Hottest 140 | 80 140 112 136 53 Shots Fired 253 | 8 162 16 55 12 Gun 227 | 8 159 12 39 9 Cannon 16 | . . 4 12 . Launcher 7 | . . . 4 3 Special 3 | . 3 . . . Kinetic 64 | . 15 10 30 9 Thermal 180 | 8 147 4 21 . Explosive 7 | . . . 4 3 Electromagnetic 2 | . . 2 . . Robot Hit Streak 13 | 3 10 13 8 11 Robot Miss Streak 8 | 3 4 4 8 1 Penetration Max . | . . . . . Secondary Targets 2 | . 1 . 1 . Max Gunslinging Chain 1 | . 1 . 1 . Shots Hit Robots 153 | 5 93 10 37 8 Core Hits 80 | 3 40 3 22 12 Critical Kills . | . . . . . Critical Parts Destroyed . | . . . . . Critical Strikes . | . . . . . Melee Attacks 1 | . 1 . . . Impact 1 | . 1 . . . Slashing . | . . . . . Piercing . | . . . . . Sneak Attacks . | . . . . . Combat Hostiles . | . . . . . Follow-up Attacks . | . . . . . Damage Inflicted 2300 | 56 1099 127 862 156 Guns 1729 | 53 1095 111 395 75 Cannons 141 | . . 16 125 . Explosions 423 | . . . 342 81 Melee . | . . . . . Ramming 7 | 3 4 . . . Kinetic 606 | . 157 95 279 75 Thermal 1264 | 53 938 32 241 . Explosive 423 | . . . 342 81 Electromagnetic . | . . . . . Impact . | . . . . . Slashing . | . . . . . Piercing . | . . . . . Highest Corruption . | . . . . . Average Corruption . | . . . . . Corruption Purged . | . . . . . Corruption Blocked . | . . . . . Overload Shots . | . . . . . Overflow Damage 23 | . . . 23 . Projectiles 3 | . . . 3 . Explosions 20 | . . . 20 . Melee . | . . . . . Knockbacks . | . . . . . Impact . | . . . . . Kinetic . | . . . . . Secondary . | . . . . . Self-Inflicted Damage 28 | . . . 28 . Shots 2 | . . . 2 . Rammed 3 | 1 1 . 1 . Targets Rammed 3 | 1 1 . 1 . Kicked . | . . . . . Crushed . | . . . . . Highest Temperature 312 | 36 312 51 215 . Average Temperature 63 | 16 66 20 70 . Received Heat Transfer 432 | . 252 . 180 . Siege Activations . | . . . . . Martial Activations . | . . . . . Shielding Activations . | . . . . . Robots Disrupted . | . . . . . Combat Hostiles . | . . . . . Robots Corrupted . | . . . . . Combat Hostiles . | . . . . . Parts Fried . | . . . . . Impact Corruptions . | . . . . . Robots Melted . | . . . . . Combat Hostiles . | . . . . . Parts Melted 4 | . 4 . . . Heat Transferred 2843 | 125 2125 75 518 . Parts Sabotaged . | . . . . . Parts Stolen . | . . . . . Parts Stripped . | . . . . . Power Chain Reactions . | . . . . . Alert | -11 -10 -10 -9 -9 ------- Run | Yrd Mat Min Mat Min Maximum Alert Level . | . . . . . Low Security (%) 100 | 100 100 100 100 100 Level 1 . | . . . . . Level 2 . | . . . . . Level 3 . | . . . . . Level 4 . | . . . . . Level 5 . | . . . . . High Security . | . . . . . Max Security . | . . . . . Peak Influence 122 | 5 89 40 122 30 Initial 30 | . . . . 30 Average 35 | 1 31 11 60 7 Influence Increases 917 | 10 426 40 440 1 Destroy 0b10 Robot/C 560 | . 240 40 280 . Destroy 0b10 Robot/NC 90 | 10 55 . 25 . Destroy Leader 132 | . 78 . 54 . Successful Hack 31 | . 22 . 9 . Disable Machine 15 | . 15 . . . Destroy Structure 14 | . 1 . 12 1 Lose Combat Pursuer 75 | . 15 . 60 . Influence Decreases 917 | 10 426 40 363 78 Entered New Map 47 | . . . . 47 Time Decay 799 | 10 426 40 293 30 Lost Part 71 | . . . 70 1 Squads Dispatched 5 | . 4 . 1 . Investigation 2 | . 1 . 1 . Extermination . | . . . . . Reinforcement 3 | . 3 . . . Assault . | . . . . . Garrison . | . . . . . Intercept . | . . . . . Searches Triggered . | . . . . . Construction Impeded . | . . . . . Haulers Reinforced . | . . . . . Active Scanning Responses . | . . . . . Cargo Convoy Interrupts . | . . . . . Stealth | -11 -10 -10 -9 -9 --------- Run | Yrd Mat Min Mat Min Distress Signals 5 | . 5 . . . Communications Jammed . | . . . . . Distress Signals . | . . . . . Times Spotted 62 | . 32 4 24 2 Peak Tracking Total 6 | . 5 3 6 2 Tactical Retreats 2 | . 1 . 1 . Traps | -11 -10 -10 -9 -9 ------- Run | Yrd Mat Min Mat Min Traps Triggered 2 | . 2 . . . Indirectly . | . . . . . Trap Hack Attempts . | . . . . . Triggered . | . . . . . Disarmed . | . . . . . Reprogrammed . | . . . . . Reused . | . . . . . Traps Extracted . | . . . . . Installed . | . . . . . Triggered . | . . . . . Machines | -11 -10 -10 -9 -9 ---------- Run | Yrd Mat Min Mat Min Machines Disabled 1 | . 1 . . . Max in Single Turn 1 | . 1 . . . Machines Repaired . | . . . . . Machines Dismantled . | . . . . . Machines Sabotaged . | . . . . . Overloaded Fab Kills . | . . . . . Hacking | -11 -10 -10 -9 -9 --------- Run | Yrd Mat Min Mat Min Machines Accessed 10 | . 6 . 4 . Terminals 8 | . 5 . 3 . Fabricators . | . . . . . Repair Stations . | . . . . . Recycling Units 1 | . 1 . . . Scanalyzers 1 | . . . 1 . Garrison Access . | . . . . . Total Hacks 32 | . 21 . 11 . Successful 22 | . 13 . 9 . Failed 10 | . 8 . 2 . Catastrophic 1 | . . . 1 . Database Lockouts . | . . . . . Manual 14 | . 10 . 4 . Terminals 26 | . 19 . 7 . Fabricators . | . . . . . Repair Stations . | . . . . . Recycling Units 2 | . 2 . . . Scanalyzers 4 | . . . 4 . Garrison Access . | . . . . . Terminal Hacks 6 | . 5 . 1 . Alert Level 1 | . 1 . . . Transport Status 1 | . 1 . . . Reinforcement Status 1 | . 1 . . . Recall Investigation 1 | . . . 1 . Zone Layout 2 | . 2 . . . Fabricator Hacks . | . . . . . Repair Station Hacks . | . . . . . Recycling Unit Hacks 1 | . 1 . . . Retrieve Components 1 | . 1 . . . Scanalyzer 4 | . . . 4 . Insert Component 1 | . . . 1 . Analyze 1 | . . . 1 . Retrieve Study 2 | . . . 2 . Garrison Access Hacks . | . . . . . Unauthorized Hacks 11 | . 7 . 4 . Terminals 11 | . 7 . 4 . Track 5 | . 3 . 2 . Botnet 5 | . 3 . 2 . Operators 1 | . 1 . . . Fabricators . | . . . . . Repair Stations . | . . . . . Recycling Units . | . . . . . Scanalyzers . | . . . . . Garrison Access . | . . . . . Data Cores Recovered . | . . . . . Used . | . . . . . Hacking Detections 8 | . 4 . 4 . Full Trace Events 1 | . . . 1 . Feedback Events . | . . . . . Feedback Blocked . | . . . . . Robot Schematics Acquired . | . . . . . Robots Built . | . . . . . Authchips . | . . . . . Time . | . . . . . Total Robot Build Rating . | . . . . . Part Schematics Acquired 1 | . . . 1 . Parts Built . | . . . . . Authchips . | . . . . . Time . | . . . . . Total Part Build Rating . | . . . . . Part Studies Acquired 2 | . . . 2 . Parts Repaired . | . . . . . Time . | . . . . . Parts Recycled . | . . . . . Recycled Matter . | . . . . . Retrieved Matter . | . . . . . Retrieved Components 9 | . 9 . . . Parts Scanalyzed 1 | . . . 1 . Part Schematics Acquired 1 | . . . 1 . Parts Damaged . | . . . . . Bothacking | -11 -10 -10 -9 -9 ------------ Run | Yrd Mat Min Mat Min Used RIF Installer . | . . . . . Robots Hacked . | . . . . . Non-combat . | . . . . . Combat . | . . . . . Robot Hacks Applied . | . . . . . Relay Couplers Released . | . . . . . Fabnet Peak Effective % . | . . . . . Robots Rewired . | . . . . . Allies Hacked . | . . . . . Hacks Repelled . | . . . . . Allies | -11 -10 -10 -9 -9 -------- Run | Yrd Mat Min Mat Min Total Allies . | . . . . . Largest Group . | . . . . . Highest-Rated Group . | . . . . . Highest-Rated Ally . | . . . . . Total Orders . | . . . . . Ally Attacks . | . . . . . Total Damage . | . . . . . Kills . | . . . . . Allies Corrupted . | . . . . . Allies Melted . | . . . . . Intel | -11 -10 -10 -9 -9 ------- Run | Yrd Mat Min Mat Min Active Infowar (turns) 1624 | 53 727 . 691 153 Terrain 478 | . . . 478 . Structural 44 | . . . 44 . Seismic 780 | 53 727 . . . T.N.C. 628 | . . . 475 153 Robot Analysis Total . | . . . . . Derelict Logs Recovered 1 | . . 1 . . Drone Launches . | . . . . . Drone Recoveries . | . . . . . Exploration | -11 -10 -10 -9 -9 ------------- Run | Yrd Mat Min Mat Min Turns Passed 2702 | 127 1572 151 699 153 Spaces Moved 1504 | 67 863 87 405 82 Core 138 | 7 . 15 116 . Treads 845 | 60 419 . 284 82 Legs . | . . . . . Wheels 516 | . 444 72 . . Hover 5 | . . . 5 . Flight . | . . . . . Fastest Speed 50 | 50 95 50 50 160 Average Speed 138 | 148 140 125 131 160 Slowest Speed 250 | 160 240 175 250 240 Overloaded Moves . | . . . . . Propulsion Burnouts . | . . . . . Robots Hopped . | . . . . . Potential Cave-ins . | . . . . . Cave-ins Triggered . | . . . . . Exploration Rate (%) 35 | 4 87 19 37 31 Regions Visited 4 Branch Regions 2 Pre-discovered Areas 1 | . . 1 . . Known Exits Taken . | . . . . . Unknown Exits Taken 4 | 1 1 1 1 . Scrap Searched 1 | . . 1 . . Spaces Dug 1 | . 1 . . . Terrain Destroyed 20 | . 1 . 16 3 Melee 1 | . 1 . . . Projectile . | . . . . . AOE 19 | . . . 16 3 Terrain Rammed . | . . . . . Walls Destroyed . | . . . . . Machines Disabled . | . . . . . Actions | -11 -10 -10 -9 -9 --------- Run | Yrd Mat Min Mat Min Total 1850 | 83 1051 113 510 93 Wait 83 | . 60 1 22 . Move 1500 | 66 862 86 404 82 Hop . | . . . . . Pick Up 41 | 5 21 3 12 . Fast Attach 23 | 7 3 . 13 . Attach 21 | . 2 8 6 5 Detach 1 | . . . 1 . Swap 22 | . 11 2 9 . Drop 21 | . 8 5 8 . Fire 134 | 4 82 8 34 6 Melee 1 | . 1 . . . Ram . | . . . . . Kick . | . . . . . Crush 3 | 1 1 . 1 . Escape Stasis . | . . . . . Rewire . | . . . . . Trap . | . . . . . Miscellaneous . | . . . . . Route ------- -11/Scrapyard -10/Materials (discovered 5 exits: *Mat x3 / [*Min x2]) -10/Mines -9/Materials -9/Mines (discovered 1 exit: [*Mat]) History --------- Turn | Location | Event 5 | -11/Scrapyard | Discovered new exit (range 15) 128 | -11/Scrapyard | Entered Materials 250 | -10/Materials | Discovered new exit (range 10) 300 | -10/Materials | Build established: Mutant 962 | -10/Materials | Discovered new exit (range 20) 1193 | -10/Materials | Discovered new exit (range 16) 1275 | -10/Materials | Discovered new exit (range 8) 1320 | -10/Materials | Discovered new exit (range 16) 1700 | -10/Materials | Entered Mines 1815 | -10/Mines | Core integrity fell below 50% 1843 | -10/Mines | Core integrity fell below 20% 1844 | -10/Mines | Discovered new exit (range 15) 1851 | -10/Mines | Entered Materials 1851 | -9/Materials | Evolved 2 slots: Utility x2 1873 | -9/Materials | Lost 13 parts (2p4n2u5w) 2008 | -9/Materials | Lost 7 parts (1p1n2u3w) 2087 | -9/Materials | Core integrity fell below 50% 2287 | -9/Materials | Build established: Scavenger-Mutant 2486 | -9/Materials | Discovered new exit (range 10) 2550 | -9/Materials | Entered Mines 2569 | -9/Mines | Met a Derelict bent on vengeance 2621 | -9/Mines | Discovered new exit (range 11) 2659 | -9/Mines | Assembled infested the area 2664 | -9/Mines | Assisted by a Guerilla fighting off Assembled 2700 | -9/Mines | Core integrity fell below 20% 2703 | -9/Mines | Destroyed by D-53 Grenadier with Mini Grenade Launcher Last Messages --------------- 02667_ HV Slug penetrates Wall. 02669_ D-53 Grenadier suffers critical hit (Destroy). 02669_ Y8-9G4(h) destroyed. 02670_ U-05 Engineer destroyed. 02670_ Seismic Survey Station disabled. 02670_ T-07 Excavator destroyed. 02671_ Acquired 11 matter. 02680_ Med. Armor Plating destroyed. 02681_ The unstable cave ceiling collapses. 02691_ Imp. Assault Rifle destroyed. 02691_ Lgt. Armor Plating destroyed. 02694_ The unstable cave ceiling collapses. 02695_ Lgt. Treads destroyed. 02695_ Hrd. Light Armor Plating destroyed. 02696_ The unstable cave ceiling collapses. 02697_ Lgt. Treads destroyed. 02698_ The unstable cave ceiling collapses. 02701_ Ion Engine destroyed. 02703_ U-05 Engineer lays Concrete. Map ----- +----------------------------------------------------+ | #???## #???????????????????????????????????? | | #### #????#######????????????????????????? | | ##???# ?????????????????????????? | | ##??# ??????????????????????????? | | ##?# #???????????????????????????? | | #### ### #???????????????????????????? | | ???## #???????????????????????????? | | ???## #???????????????????????????? | | ##?# #### ##???????????????????????????? | | ### ##??# #????????????????????????????? | | ###???# ###??????????????????????????? | | ### ########### ##?????????????????????????? | | #?# ##???## #?????????????????????????? | | #?# ##???## #?????????????????????????? | | ### #????# ##?????????????????????????? | | #????# #??????????????????????????? | | #????## < ##??????????????????????????? | | #######?????# ##???????????????????????????? | | ?????????##?# ###????????????????????????????? | | ?????????#"## ##??#######?????????????????????? | | ###??????# " ##??## ##????????????????????? | | #??????# " #???# ##???????????????????? | | #??????# ###???# ##??????????????????? | | #??????# ###??## #### ##???????????? | | #??????## #### #???????????? | | " #?????## # @ #??????????? | | " #??#### # ####???????????????? | | " #?## u #??????????????????? | | #?# ##??????????????????? | | ###?# d d # ??????????????????? | | #???## # # #????????????????? | | #????## ## #????????????????? | | ??????#??## # ##### ##????????????????? | | ??????????#### " #?????# ##?????????????????? | | ?????????????## "" #?????##??????????????????? | | ??????????????## #????????????????????????? | | ???????????????## #????????????????????????? | | ????????????????#### ##????????????????????????? | | ???????????????????#####?????????????????????????? | | ?????????????????????????????????????????????????? | | ?????????????????????????????????????????????????? | | ?????????????????????????????????????????????????? | | ?????????????????????????????????????????????????? | | ?????????????????????????????????????????????????? | | ?????????????????????????????????????????????????? | | ?????????????????????????????????????????????????? | | ?????????????????????????????????????????????????? | | ?????????????????????????????????????????????????? | | ?????????????????????????????????????????????????? | | ?????????????????????????????????????????????????? | +----------------------------------------------------+ Best States ------------- Heat Dissipation 50 Energy Generation 12 Energy Capacity 265 Matter Stores 300 Matter Capacity 300 Sight Range 16 Terrain Scan Range 16 Terrain Scan Density 10 Armor Coverage 375 Evasion (%) 50 Recoil Reduction 2 Item Schematics ----------------- Imp. Assault Rifle | -9/Materials | Scanalyzed Robot Schematics ------------------ None Fabricated ------------ Nothing Repaired ---------- Nothing Studied --------- Assault Rifle | -9/Materials | Hacked Mni. Grenade Launcher | -9/Materials | Hacked Alien Tech Used ----------------- None Achievements -------------- Close Call Hydra Challenges ------------ None Game ------ Seed ImpulseNanofilamentsFalx Manual? 0 Play Time 00:41:19 Cumulative 25.5 hours Start 2026.04.03 @ 01:47:29 End 2026.04.03 @ 02:31:55 Sessions 1 Manual Loads 0 Difficulty Rogue Special Mode None Game No. 24 Rogue 24 Adventurer 0 Explorer 0 Win Type - Total 0 Types 0/0/0/0/0/0/0/0/0/0 Lore% 9 Gallery% 18 Achievement% 16 Wizard Run 0 Options --------- Layout 1 ASCII 0 Keyboard 0 Movement Mouse Keybinds 0 Fullscreen 2 Font 24/Smallcaps Map View 50x35 Zoom Use 0% Tactical HUD 1 Map Filters NONE Filters NONE Steam 1 RUN: 28d0e6e9-737e-4b54-bfd3-bac9c0da5db8